{"text_format":"1","workbook":"xlsx","n_sheets":2,"sheets":["Dokonaj wyboru","Lista zakupowa"],"not_rendered":{"charts":0,"images":1,"macros":1,"external_links":1,"defined_names":2,"comments":0,"pivot_tables":0},"unopened":[],"bounds":{"document_bytes":16777216,"sheet_cells":100000,"rows_first":2000,"rows_last":500,"rows_between":2000,"halvings":0,"cell_chars":16384,"cell_head_chars":4096},"cells_cut":0,"cells_raw":0,"read":"whole","date_system":"1900"}

{"sheet":"Dokonaj wyboru","index":0,"n_rows":79,"n_cols":12,"rows_kept":79,"cut":false,"hidden":false,"merged":[[60,7,60,8],[44,0,44,5],[45,0,45,5],[1,0,1,4],[1,7,1,9],[2,0,2,4],[7,0,7,2],[27,7,27,9],[43,0,43,5]]}
[null,"Kalkulator pomocy dydaktycznych"]
["w ramach dofinansowania MEN na pracownie przyrodnicze",null,null,null,null,null,null,"CHEMIA",null,null,null,{"$f":"SUM(L4:L17)*(1-$A$6)","v":0}]
["2020-05-01",null,null,null,null,null,null,"Symbol","Zestaw zawiera","L. szt.","Cena brutto","Wartość brutto"]
["Aby utworzyć listę zakupów, obsługa MAKR musi być włączona",null,null,null,"Wersja 1",null,null,"PS-3201","Bezprzewodowy czujnik temperatury",null,461,{"$f":"K4*J4","v":0}]
[null,null,null,null,null,null,null,"PS-3204","Bezprzewodowy czujnik pH",null,697,0]
[null,null,null,"RAZEM brutto",{"$f":"E8+L2+L28+L61","v":0},null,null,"PS-3514","Sonda pH do powierzchni płaskich",null,391,0]
[null,null,null,null,null,null,null,"PS-3210","Bezprzewodowy czujnik konduktywności",null,997,0]
["FIZYKA",null,null,null,{"$f":"SUM(E10:E40)*(1-$A$6)","v":0},null,null,"PS-3208","Bezprzewodowy czujnik CO2",null,2006,0]
["Symbol","Zestaw zawiera","L. szt.","Cena brutto","Wartość brutto",null,null,"PS-3545","Osłona wodoodporna do czujnika CO2",null,198,0]
["ME-5718A","Tor metalowy 1,2 m z 2 wózkami SMART - zestaw z akcesoriami",null,4628,{"$f":"D10*C10","v":0},null,null,"PS-3203","Bezprzewodowy czujnik ciśnienia",null,890,0]
["PS-3201","Bezprzewodowy czujnik temperatury",null,461,0,null,null,"PS-3217","Bezprzewodowy czujnik tlenu",null,1860,0]
["PS-3202","Bezprzewodowy czujnik siły i przyspieszenia",null,1018,0,null,null,"PS-3224","Bezprzewodowy czujnik tlenu rozpuszczonego",null,2906,0]
["PS-3219","Bezprzewodowy czujnik ruchu",null,1013,0,null,null,"PS-3202","Bezprzewodowy czujnik siły i przyspieszenia",null,1018,0]
["PS-3203","Bezprzewodowy czujnik ciśnienia",null,890,0,null,null,"PS-2400-DIG","Program SPARKvue do obsługi czujników i doświadczeń - licencja bezterminowa na wszystkie komputery w placówce (cyfr.)",null,2579,0]
["EM-3535","Modułowy obwód prądu - podstawowy",null,1672,0,null,null,"PS-3500","Adapter USB - Bluetooth 4.0",null,134,0]
["EM-3534","Bezprzewodowy moduł amperomierza",null,670,0,null,null,"L-A","Laptop Acer TravelMate P215-52",null,2390,0]
["PS-3211","Bezprzewodowy czujnik napięcia elektrycznego",null,627,0,null,null,"LK-A","Laptop konwertowalny Acer TravelMate B118",null,1750,0]
["EM-3533","Bezprzewodowy moduł generatora sygnału AC/DC ",null,1335,0,null,null,"TAB","Tablet Lenovo TAB M10 Snapdragon",null,630,0]
["PS-3212","Bezprzewodowy czujnik natężenia prądu",null,745,0,null,null,"MX265","Monitor SMART SBID-MX265",null,8099,0]
["PS-3213","Bezprzewodowy czujnik światła",null,708,0,null,null,"MX275","Monitor SMART SBID-MX275",null,11099,0]
["PS-3221","Bezprzewodowy 3-osiowy czujnik pola magnetycznego",null,745,0,null,null,"Z-SB680","Tablica SMART SB680 + Projektor MAXELL MC-AX3006",null,8029,0]
["OS-8515C","Zestaw do optyki - podstawowy",null,4285,0,null,null,"Z-SB680V","Tablica SMART SB680V + Projektor MAXELL MC-AX3006",null,7219,0]
["ME-1246","Wyświetlacz wektorów do wózka SMART",null,675,0,null,null,"W-E","Wizualizer ELMO MX-P",null,2347,0]
["PS-3225","Bezprzewodowa inteligentna fotobramka podwójna",null,740,0,null,null,"W-SMART","Wizualizer SMART SDC550",null,4175,0]
["ME-6816","Zbiorniki ilustrujące cyrkulację i konwekcję",null,750,0,null,null,"MC-EX303","Projektor MAXELL MC-EX303",null,2139,0]
["PS-3231","Urządzenie //code.Node",null,697,0,null,null,"MC-EX353","Projektor MAXELL MC-EX353",null,2499,0]
["PS-3220","Bezprzewodowy czujnik ruchu obrotowego",null,1769,0]
["PS-2400-DIG","Program SPARKvue do obsługi czujników i doświadczeń - licencja bezterminowa na wszystkie komputery w placówce (cyfr.)",null,2579,0,null,null,"BIOLOGIA",null,null,null,{"$f":"SUM(L30:L51)*(1-$A$6)","v":0}]
["PS-3500","Adapter USB - Bluetooth 4.0",null,134,0,null,null,"Symbol","Zestaw zawiera","L. szt.","Cena brutto","Wartość brutto"]
["L-A","Laptop Acer TravelMate P215-52",null,2390,0,null,null,"PS-3201","Bezprzewodowy czujnik temperatury",null,461,{"$f":"K30*J30","v":0}]
["LK-A","Laptop konwertowalny Acer TravelMate B118",null,1750,0,null,null,"PS-3208","Bezprzewodowy czujnik CO2",null,2006,0]
["TAB","Tablet Lenovo TAB M10 Snapdragon",null,630,0,null,null,"PS-3204","Bezprzewodowy czujnik pH",null,697,0]
["MX265","Monitor SMART SBID-MX265",null,8099,0,null,null,"PS-3514","Sonda pH do powierzchni płaskich",null,391,0]
["MX275","Monitor SMART SBID-MX275",null,11099,0,null,null,"PS-3213","Bezprzewodowy czujnik światła",null,708,0]
["Z-SB680","Tablica SMART SB680 + Projektor MAXELL MC-AX3006",null,8029,0,null,null,"PS-3217","Bezprzewodowy czujnik tlenu",null,1860,0]
["Z-SB680V","Tablica SMART SB680V + Projektor MAXELL MC-AX3006",null,7219,0,null,null,"PS-3207","Bezprzewodowy czujnik tętna wysiłkowy",null,788,0]
["W-E","Wizualizer ELMO MX-P",null,2347,0,null,null,"PS-3218","Bezprzewodowy czujnik ciśnienia krwi",null,997,0]
["W-SMART","Wizualizer SMART SDC550",null,4175,0,null,null,"PS-2163","PASPORT Czujnik wilgotności gleby                                                                       ",null,1570,0]
["MC-EX303","Projektor MAXELL MC-EX303",null,2139,0,null,null,"PS-2111-FR","PASPORT Czujnik EKG (UE)",null,1490,0]
["MC-EX353","Projektor MAXELL MC-EX353",null,2499,0,null,null,"PS-3227","Bezprzewodowy czujnik dźwięku",null,842,0]
[null,null,null,null,null,null,null,"PS-2163","PASPORT Czujnik wilgotności gleby                                                                       ",null,1570,0]
[null,null,null,null,null,null,null,"PS-2187","PASPORT Czujnik częstości oddechu",null,2006,0]
[null,null,null,null,null,null,null,"PS-3215","Bezprzewodowy kolorymetr i czujnik zmętnienia",null,1136,0]
["UWAGA!    Przeczytaj ważne uwagi - LEGENDA UŻYTYCH KOLORÓW",null,null,null,null,null,null,"PS-2521B","Pojemnik do fotosyntezy",null,670,0]
[null,null,null,null,null,null,null,"ME-6667","Eko-komora",null,386,{"$f":"K45*J45","v":0}]
["Zalecamy zamawiać parzystą liczbę czujników, z uwagi na specyfikę doświadczeń do przeprowadzenia",null,null,null,null,null,null,"PS-3200","Interfejs AirLink",null,552,{"$f":"K46*J46","v":0}]
["Program do obsługi czujników należy wpisać TYLKO W JEDNYM przedmiocie (jest dla całej szkoły)",null,null,null,null,null,null,"PS-2400-DIG","Program SPARKvue do obsługi czujników i doświadczeń - licencja bezterminowa na wszystkie komputery w placówce (cyfr.)",null,2579,0]
["Zamówić TYLKO DO STARSZYCH LUB STACJONARNYCH komputerów, które nie obsługują Bluetooth 4.0",null,null,null,null,null,null,"PS-3500","Adapter USB - Bluetooth 4.0",null,134,0]
["Te elementy należy zamawiać albo RAZEM albo wcale. Z wyjątkiem czujnika napięcia (PS-3221), który",null,null,null,null,null,null,"L-A","Laptop Acer TravelMate P215-52",null,2390,0]
["MUSI być zakupiony z zestawem EM-3535, ale MOŻE być też kupiony osobno.",null,null,null,null,null,null,"LK-A","Laptop konwertowalny Acer TravelMate B118",null,1750,0]
["Jeżeli zamówiono model obwodu z modułem amperomierza - ten element jest niepotrzebny",null,null,null,null,null,null,"TAB","Tablet Lenovo TAB M10 Snapdragon",null,630,0]
["Zdecydowanie polecany, ale nie obowiązkowy element (wspomaga także naukę programowania)",null,null,null,null,null,null,"MX265","Monitor SMART SBID-MX265",null,8099,0]
["Interjejs AirLink jest konieczny, gdy zamawia się czujniki z nazwą PASPORT (może być jeden)",null,null,null,null,null,null,"MX275","Monitor SMART SBID-MX275",null,11099,0]
["Do fizyki proponujemy w pierwszej kolejności zamówić tor z wózkami pomiarowymi SMART. Jest to",null,null,null,null,null,null,"Z-SB680","Tablica SMART SB680 + Projektor MAXELL MC-AX3006",null,8029,0]
["kompletny zestaw do przeprowadzenia wszystkich doświadczeń z mechaniki (kinematyki i dynamiki,",null,null,null,null,null,null,"Z-SB680V","Tablica SMART SB680V + Projektor MAXELL MC-AX3006",null,7219,0]
["ruchu postępowego i obrotowego). Zastępuje wszystkie inne czujniki związane z mechaniką. Jest",null,null,null,null,null,null,"W-E","Wizualizer ELMO MX-P",null,2347,0]
["bardzo ważny z punktu widzenia dydaktycznego, bo mechanika jest pierwszym tematem z fizyki",null,null,null,null,null,null,"W-SMART","Wizualizer SMART SDC550",null,4175,0]
["przerabianym w szkole. Od tego zależy, czy młodzież polubi fizykę do końca szkoły.",null,null,null,null,null,null,"MC-EX303","Projektor MAXELL MC-EX303",null,2139,0]
["W razie braku środków w budżecie, z tych urządzeń można zrezygnować, gdyż ich fukcje mogą pełnić",null,null,null,null,null,null,"MC-EX353","Projektor MAXELL MC-EX353",null,2499,0]
["wózki SMART z zestawu z torem."]
[null,null,null,null,null,null,null,"GEOGRAFIA",null,null,null,{"$f":"SUM(L63:L79)*(1-$A$6)","v":0}]
[null,null,null,null,null,null,null,"Symbol","Zestaw zawiera","L. szt.","Cena brutto","Wartość brutto"]
[null,null,null,null,null,null,null,"PS-3209","Bezprzewodowy czujnik pogody z GPS",null,1651,{"$f":"K63*J63","v":0}]
[null,null,null,null,null,null,null,"PS-3553","Akcesoria wiatromierza do czujnika pogody",null,322,0]
[null,null,null,null,null,null,null,"PS-3213","Bezprzewodowy czujnik światła",null,708,0]
[null,null,null,null,null,null,null,"PS-3201","Bezprzewodowy czujnik temperatury",null,461,0]
[null,null,null,null,null,null,null,"PS-2400-DIG","Program SPARKvue do obsługi czujników i doświadczeń - licencja bezterminowa na wszystkie komputery w placówce (cyfr.)",null,2579,0]
[null,null,null,null,null,null,null,"PS-3500","Adapter USB - Bluetooth 4.0",null,134,0]
[null,null,null,null,null,null,null,"L-A","Laptop Acer TravelMate P215-52",null,2390,0]
[null,null,null,null,null,null,null,"LK-A","Laptop konwertowalny Acer TravelMate B118",null,1750,0]
[null,null,null,null,null,null,null,"TAB","Tablet Lenovo TAB M10 Snapdragon",null,630,0]
[null,null,null,null,null,null,null,"MX265","Monitor SMART SBID-MX265",null,8099,0]
[null,null,null,null,null,null,null,"MX275","Monitor SMART SBID-MX275",null,11099,0]
[null,null,null,null,null,null,null,"Z-SB680","Tablica SMART SB680 + Projektor MAXELL MC-AX3006",null,8029,0]
[null,null,null,null,null,null,null,"Z-SB680V","Tablica SMART SB680V + Projektor MAXELL MC-AX3006",null,7219,0]
[null,null,null,null,null,null,null,"W-E","Wizualizer ELMO MX-P",null,2347,0]
[null,null,null,null,null,null,null,"W-SMART","Wizualizer SMART SDC550",null,4175,0]
[null,null,null,null,null,null,null,"MC-EX303","Projektor MAXELL MC-EX303",null,2139,0]
[null,null,null,null,null,null,null,"MC-EX353","Projektor MAXELL MC-EX353",null,2499,0]

{"sheet":"Lista zakupowa","index":1,"n_rows":41,"n_cols":20,"rows_kept":41,"cut":false,"hidden":false,"merged":[[40,18,40,19],[40,3,40,4],[40,8,40,9],[40,13,40,14],[3,2,3,16],[5,1,5,17],[7,0,7,4],[7,5,7,9],[7,10,7,14],[7,15,7,19]]}
[]
[]
[]
[null,null,"Nazwa Szkoły: ____________________________________________________________"]
[]
[null,"Wykaz pomocy dydaktycznych do zakupienia za środki z dofinansowania MEN za wyposażenie pracowni przyrodniczych"]
[]
["Geografia",null,null,null,null,"Biologia",null,null,null,null,"Fizyka",null,null,null,null,"Chemia"]
["Nr kat","Nazwa","Szt.","Cena [zł]","Wartość [zł]","Nr kat","Nazwa","Szt.","Cena [zł]","Wartość [zł]","Nr kat","Nazwa","Szt.","Cena [zł]","Wartość [zł]","Nr kat","Nazwa","Szt.","Cena [zł]","Wartość [zł]"]
[]
[]
[]
[]
[]
[]
[]
[]
[]
[]
[]
[]
[]
[]
[]
[]
[]
[]
[]
[]
[]
[]
[]
[]
[]
[]
[]
[]
[]
[]
[]
[null,null,null,{"$f":"SUM(E10:E40)","v":0},null,null,null,null,{"$f":"SUM(J10:J40)","v":0},null,null,null,null,{"$f":"SUM(O10:O40)","v":0},null,null,null,null,{"$f":"SUM(T10:T40)","v":0}]